fUST/lending_fUST_20260424
["ID","MTS","AMOUNT","RATE_DAILY","PERIOD"]
[421061044,1776969042261,-151.0,0.0001857,2]
[421061045,1776969042271,-151.0,0.0001857,2]
[421061046,1776969042280,-151.0,0.0001857,2]
[421061047,1776969042289,-151.0,0.0001857,2]
[421061048,1776969042299,-151.0,0.0001857,2]
[421061049,1776969042308,-151.0,0.0001857,2]
[421061050,1776969042318,-151.0,0.0001857,2]
[421061051,1776969042327,-151.0,0.0001857,2]
[421061052,1776969042337,-151.0,0.0001857,2]
[421061053,1776969042347,-151.0,0.0001857,2]
[421061054,1776969042356,-185.05307,0.0001857,2]
[421061055,1776969042365,-185.05307,0.0001857,2]
[421061056,1776969042375,-185.05307,0.0001857,2]
[421061057,1776969042385,-185.05307,0.0001857,2]
[421061058,1776969042394,-624.404623,0.0001857,2]
[421061059,1776969042403,-624.404623,0.0001857,2]
[421061060,1776969042412,-624.404623,0.0001857,2]
[421061061,1776969042421,-624.404623,0.0001857,2]
[421061062,1776969042430,-151.0,0.0001857,2]
[421061063,1776969042440,-151.0,0.0001857,2]
[421061064,1776969042449,-151.0,0.0001857,2]
[421061065,1776969042458,-151.0,0.0001857,2]
[421061066,1776969042467,-151.0,0.0001857,2]
[421061067,1776969042476,-151.0,0.0001857,2]
[421061068,1776969042486,-151.0,0.0001857,2]
[421061069,1776969042495,-151.0,0.0001857,2]
[421061070,1776969042504,-199.641148,0.0001857,2]
[421061071,1776969042513,-151.0,0.0001857,2]
[421061072,1776969042522,-282.01,0.0001857,2]
[421061073,1776969042531,-151.0,0.0001857,2]
[421061074,1776969042540,-157.544318,0.0001857,2]
[421061075,1776969042550,-157.544318,0.0001857,2]
[421061076,1776969042559,-157.544318,0.0001857,2]
[421061077,1776969042576,-157.544318,0.0001857,2]
[421061078,1776969042593,-362.699686,0.0001857,2]
[421061079,1776969042607,-362.699686,0.0001857,2]
[421061080,1776969042622,-151.0,0.0001857,2]
[421061081,1776969042639,-362.699686,0.0001857,2]
[421061082,1776969042656,-151.0,0.0001857,2]
[421061083,1776969042674,-362.699686,0.0001857,2]
[421061084,1776969042689,-1040.489551,0.0001857,2]
[421061085,1776969042704,-1040.489551,0.0001857,2]
[421061086,1776969042716,-1040.489551,0.0001857,2]
[421061087,1776969042730,-1040.489557,0.0001857,2]
[421061088,1776969042745,-151.0,0.0001857,2]
[421061089,1776969042761,-151.0,0.0001857,2]
[421061090,1776969042778,-293.327507,0.0001857,2]
[421061091,1776969042795,-1482.681261,0.0001857,2]
[421061092,1776969042806,-1482.681261,0.0001857,2]
[421061093,1776969042818,-1482.681261,0.0001857,2]
[421061094,1776969042834,-1482.681258,0.0001857,2]
[421061095,1776969042848,-161.21343043,0.000186,2]
[421061096,1776969042864,-197.91681088,0.000186,2]
[421061097,1776969042879,-242.89679077,0.000186,2]
[421061098,1776969042892,-171.63408986,0.000186,2]
[421061099,1776969042903,-683.11346453,0.000186,2]
[421061100,1776969042917,-180.72167029,0.000186,2]
[421061101,1776969042930,-329.37177381,0.000186,2]
[421061102,1776969042943,-172.51744193,0.000186,2]
[421061103,1776969042956,-168.91289213,0.000186,2]
[421061104,1776969042969,-168.03137638,0.000186,2]
[421061105,1776969042982,-391.82595743,0.000186,2]
[421061106,1776969042995,-196.68254424,0.000186,2]
[421061107,1776969043012,-155.0,0.00018639,2]
[421061108,1776969043025,-210.5699,0.00018699,2]
[421061109,1776969043039,-3111.97085719,0.000187,2]
[421061110,1776969043052,-1595.64986283,0.000187,2]
[421061111,1776969043065,-155.620158,0.000187,2]
[421061112,1776969043078,-151.0,0.000187,2]
[421061113,1776969043092,-155.620158,0.000187,2]
[421061114,1776969043105,-151.0,0.000187,2]
[421061115,1776969043118,-155.620158,0.000187,2]
[421061116,1776969043131,-184.39907081,0.000187,2]
[421061117,1776969043144,-155.620158,0.000187,2]
[421061118,1776969043158,-151.0,0.000187,2]
[421061119,1776969043172,-151.0,0.000187,2]
[421061120,1776969043184,-732.123,0.000187,2]
[421061121,1776969043197,-186.89740796,0.000187,2]
[421061122,1776969043211,-312.11363,0.000187,2]
[421061123,1776969043224,-1556.666846,0.000187,2]
[421061124,1776969043237,-312.11363,0.000187,2]
[421061125,1776969043250,-151.0,0.000187,2]
[421061126,1776969043263,-1556.666846,0.000187,2]
[421061127,1776969043276,-312.11363,0.000187,2]
[421061128,1776969043289,-151.0,0.000187,2]
[421061129,1776969043302,-1556.666846,0.000187,2]
[421061130,1776969043315,-312.11363,0.000187,2]
[421061131,1776969043328,-1556.666846,0.000187,2]
[421061132,1776969043341,-151.0,0.000187,2]
[421061133,1776969043354,-151.0,0.000187,2]
[421061134,1776969043366,-151.0,0.000187,2]
[421061135,1776969043380,-226.408555,0.000187,2]
[421061136,1776969043393,-151.0,0.000187,2]
[421061137,1776969043406,-226.408555,0.000187,2]
[421061138,1776969043418,-171.66093,0.000187,2]
[421061139,1776969043431,-226.408555,0.000187,2]
[421061140,1776969043444,-226.408555,0.000187,2]
[421061141,1776969043457,-703.856739,0.000187,2]
[421061142,1776969043470,-703.856739,0.000187,2]
[421061143,1776969043483,-703.856739,0.000187,2]
[421061144,1776969043496,-703.856739,0.000187,2]
[421061145,1776969043509,-151.0,0.000187,2]
[421061146,1776969043522,-285.11815,0.000187,2]
[421061147,1776969043535,-151.0,0.000187,2]
[421061148,1776969043547,-151.0,0.000187,2]
[421061149,1776969043561,-151.0,0.000187,2]
[421061150,1776969043574,-151.0,0.000187,2]
[421061151,1776969043587,-151.0,0.000187,2]
[421061152,1776969043600,-151.0,0.000187,2]
[421061153,1776969043613,-151.0,0.000187,2]
[421061154,1776969043625,-158.347307,0.000187,2]
[421061155,1776969043639,-151.0,0.000187,2]
[421061156,1776969043651,-154.033607,0.000187,2]
[421061157,1776969043665,-151.0,0.000187,2]
[421061158,1776969043678,-151.0,0.000187,2]
[421061159,1776969043691,-151.0,0.000187,2]
[421061160,1776969043704,-151.0,0.000187,2]
[421061161,1776969043716,-151.0,0.000187,2]
[421061162,1776969043729,-151.0,0.000187,2]
[421061163,1776969043742,-210.401547,0.000187,2]
[421061164,1776969043755,-185.05307,0.000187,2]
[421061165,1776969043768,-185.05307,0.000187,2]
[421061166,1776969043781,-185.05307,0.000187,2]
[421061167,1776969043794,-185.05307,0.000187,2]
[421061168,1776969043806,-185.05307,0.000187,2]
[421061169,1776969043819,-185.05307,0.000187,2]
[421061170,1776969043832,-185.05307,0.000187,2]
[421061171,1776969043845,-185.05307,0.000187,2]
[421061172,1776969043857,-624.404623,0.000187,2]
[421061173,1776969043870,-624.404623,0.000187,2]
[421061174,1776969043882,-624.404623,0.000187,2]
[421061175,1776969043895,-624.404623,0.000187,2]
[421061176,1776969043908,-624.404623,0.000187,2]
[421061177,1776969043922,-624.404623,0.000187,2]
[421061178,1776969043935,-624.404623,0.000187,2]
[421061179,1776969043949,-624.404623,0.000187,2]
[421061180,1776969043962,-151.0,0.000187,2]
[421061181,1776969043975,-151.0,0.000187,2]
[421061182,1776969043988,-151.0,0.000187,2]
[421061183,1776969044001,-151.0,0.000187,2]
[421061184,1776969044015,-151.0,0.000187,2]
[421061185,1776969044030,-151.0,0.000187,2]
[421061186,1776969044042,-151.0,0.000187,2]
[421061187,1776969044055,-151.0,0.000187,2]
[421061188,1776969044069,-151.0,0.000187,2]
[421061189,1776969044081,-190.925079,0.000187,2]
[421061190,1776969044094,-157.544318,0.000187,2]
[421061191,1776969044106,-157.544318,0.000187,2]
[421061192,1776969044120,-157.544318,0.000187,2]
[421061193,1776969044133,-157.544309,0.000187,2]
[421061194,1776969044145,-362.699686,0.000187,2]
[421061195,1776969044158,-362.699686,0.000187,2]
[421061196,1776969044171,-151.0,0.000187,2]
[421061197,1776969044184,-362.699686,0.000187,2]
[421061198,1776969044196,-286.35805,0.000187,2]
[421061199,1776969044209,-362.699682,0.000187,2]
[421061200,1776969044222,-1720.10749741,0.0001876,2]
[421061201,1776969044234,-7368.14131373,0.0001877,2]
[421061202,1776969044247,-312.11363,0.0001877,2]
[421061203,1776969044261,-1556.666846,0.0001877,2]
[421061204,1776969044274,-312.11363,0.0001877,2]
[421061205,1776969044287,-151.0,0.0001877,2]
[421061206,1776969044300,-1556.666846,0.0001877,2]
[421061207,1776969044313,-312.11363,0.0001877,2]
[421061208,1776969044325,-159.0,0.0001877,2]
[421061209,1776969044337,-312.11363,0.0001877,2]
[421061210,1776969044351,-1556.666846,0.0001877,2]
[421061211,1776969044363,-1556.666846,0.0001877,2]
[421061212,1776969044376,-151.0,0.0001877,2]
[421061213,1776969044389,-151.0,0.0001877,2]
[421061214,1776969044401,-188.09999,0.0001877,2]
[421061215,1776969044414,-226.408555,0.0001877,2]
[421061216,1776969044426,-151.0,0.0001877,2]
[421061217,1776969044438,-226.408555,0.0001877,2]
[421061218,1776969044450,-226.408555,0.0001877,2]
[421061219,1776969044463,-226.408555,0.0001877,2]
[421061220,1776969044476,-703.856739,0.0001877,2]
[421061221,1776969044488,-703.856739,0.0001877,2]
[421061222,1776969044501,-703.856739,0.0001877,2]
[421061223,1776969044514,-703.856739,0.0001877,2]
[421061224,1776969044830,-151.0,0.0001877,2]
[421061225,1776969044860,-151.0,0.0001877,2]
[421061226,1776969044883,-151.0,0.0001877,2]
[421061227,1776969044894,-151.0,0.0001877,2]
[421061228,1776969044903,-151.0,0.0001877,2]
[421061229,1776969044913,-151.0,0.0001877,2]
[421061230,1776969044922,-233.449496,0.0001877,2]
[421061231,1776969044933,-185.05307,0.0001877,2]
[421061232,1776969044942,-185.05307,0.0001877,2]
[421061233,1776969044952,-185.05307,0.0001877,2]
[421061234,1776969044961,-185.053064,0.0001877,2]
[421061235,1776969044971,-624.404623,0.0001877,2]
[421061236,1776969044980,-624.404623,0.0001877,2]
[421061237,1776969044989,-624.404623,0.0001877,2]
[421061238,1776969044999,-624.404615,0.0001877,2]
[421061239,1776969045009,-500.0,0.00018772,2]
[421061240,1776969045018,-155.0,0.00018782,2]
[421061241,1776969045027,-351.31594055,0.00018784,60]
[421061242,1776969045037,-3111.97085719,0.000188,2]
[421061243,1776969045047,-1595.64986283,0.000188,2]
[421061244,1776969045057,-161.21343043,0.000188,2]
[421061245,1776969045067,-242.89679077,0.000188,2]
[421061246,1776969045076,-683.11346453,0.000188,2]
[421061247,1776969045086,-180.72167029,0.000188,2]
[421061248,1776969045097,-329.37177381,0.000188,2]
[421061249,1776969045108,-172.51744193,0.000188,2]
[421061250,1776969045117,-168.91289213,0.000188,2]
[421061251,1776969045126,-168.03137638,0.000188,2]
[421061252,1776969045136,-391.82595743,0.000188,2]
[421061253,1776969045147,-196.68254424,0.000188,2]
[421061254,1776969045156,-155.620158,0.000188,2]
[421061255,1776969045165,-151.0,0.000188,2]
[421061256,1776969045175,-155.620158,0.000188,2]
[421061257,1776969045185,-151.0,0.000188,2]
[421061258,1776969045194,-155.620158,0.000188,2]
[421061259,1776969045204,-155.620158,0.000188,2]
[421061260,1776969045214,-151.0,0.000188,2]
[421061261,1776969045223,-151.0,0.000188,2]
[421061262,1776969045233,-226.408555,0.000188,2]
[421061263,1776969045243,-151.0,0.000188,2]
[421061264,1776969045253,-226.408555,0.000188,2]
[421061265,1776969045263,-226.408555,0.000188,2]
[421061266,1776969045273,-226.408553,0.000188,2]
[421061267,1776969045284,-703.856739,0.000188,2]
[421061268,1776969045293,-703.856739,0.000188,2]
[421061269,1776969045303,-703.856739,0.000188,2]
[421061270,1776969045313,-703.856744,0.000188,2]
[421061271,1776969045324,-151.0,0.000188,2]
[421061272,1776969045333,-151.0,0.00018801,2]
[421061273,1776969045343,-2312.83697232,0.00018825,2]
[421061274,1776969045354,-300.0,0.00018836,2]
[421061275,1776969045366,-600.0,0.00018837,2]
[421061276,1776969045376,-160.0,0.00018914,2]
[421061277,1776969045386,-11304.40109,0.00018914,2]
[421061278,1776969045397,-22448.80218,0.00018914,2]
[421061279,1776969045407,-160.0,0.00018914,2]
[421061280,1776969045417,-10253.40772,0.00018914,2]
[421061281,1776969045426,-20346.815441,0.00018914,2]
[421061282,1776969045436,-155.0,0.00018924,2]
[421061283,1776969045446,-461.67526834,0.00018934,2]
[421061284,1776969045456,-557.5788265,0.00018934,2]
[421061285,1776969045466,-7825.99521805,0.0001897,2]
[421061286,1776969045476,-151.0,0.0001897,2]
[421061287,1776969045486,-151.0,0.0001897,2]
[421061288,1776969045495,-312.11363,0.0001897,2]
[421061289,1776969045505,-1556.666846,0.0001897,2]
[421061290,1776969045515,-312.11363,0.0001897,2]
[421061291,1776969045525,-151.0,0.0001897,2]
[421061292,1776969045535,-1556.666846,0.0001897,2]
[421061294,1776969045546,-312.11363,0.0001897,2]
[421061295,1776969045556,-312.11363,0.0001897,2]
[421061296,1776969045566,-1556.666846,0.0001897,2]
[421061297,1776969045576,-1556.666846,0.0001897,2]
[421061298,1776969045586,-151.0,0.0001897,2]
[421061299,1776969045596,-151.0,0.0001897,2]
[421061300,1776969045606,-3111.97085719,0.00019,2]
[421061301,1776969045617,-395.92005755,0.00019,2]
[421061308,1776969046131,-1108.91918031,0.00019,2]
[421061309,1776969046144,-90.81062497,0.00019,2]
[421061310,1776969046154,-161.21343043,0.00019,2]
[421061311,1776969046166,-242.89679077,0.00019,2]
[421061312,1776969046175,-683.11346453,0.00019,2]
[421061313,1776969046185,-180.72167029,0.00019,2]
[421061314,1776969046195,-329.37177381,0.00019,2]
[421061315,1776969046206,-172.51744193,0.00019,2]
[421061316,1776969046215,-87.69717277,0.00019,2]
[421061320,1776969046880,-151.0,0.00018397,2]
[421061321,1776969046891,-151.0,0.00018397,2]
[421061322,1776969046901,-151.0,0.00018397,2]
[421061323,1776969046911,-151.0,0.00018397,2]
[421061324,1776969046922,-151.0,0.0001847,2]
[421061325,1776969046931,-151.0,0.0001847,2]
[421061326,1776969046941,-151.0,0.00018498,2]
[421061327,1776969046951,-151.0,0.00018498,2]
[421061328,1776969046961,-487.0,0.00018498,2]
[421061329,1776969046971,-487.0,0.00018498,2]
[421061330,1776969046981,-487.0,0.00018498,2]
[421061331,1776969046991,-487.0,0.00018498,2]
[421061332,1776969047001,-158.75668427,0.00018498,2]
[421061333,1776969047013,-328.24331573,0.00018498,2]
[421061334,1776969047023,-487.0,0.00018498,2]
[421061335,1776969047033,-487.0,0.00018498,2]
[421061336,1776969047043,-487.0,0.00018498,2]
[421061337,1776969047053,-487.0,0.00018498,2]
[421061338,1776969047062,-487.0,0.00018498,2]
[421061339,1776969047072,-487.0,0.00018498,2]
[421061340,1776969047082,-487.0,0.00018498,2]
[421061341,1776969047092,-487.0,0.00018498,2]
[421061342,1776969047102,-487.0,0.00018498,2]
[421061343,1776969047112,-487.0,0.00018498,2]
[421061344,1776969047122,-487.0,0.00018498,2]
[421061345,1776969047132,-487.0,0.00018498,2]
[421061346,1776969047143,-151.0,0.0001857,2]
[421061347,1776969047153,-151.0,0.0001857,2]
[421061348,1776969047163,-265.665663,0.0001857,2]
[421061349,1776969047173,-81.21571936,0.00019,2]
[421061350,1776969047182,-168.03137638,0.00019,2]
[421061351,1776969047193,-196.68254424,0.00019,2]
[421061352,1776969047203,-202.0,0.00019,2]
[421061353,1776969047212,-153.0,0.00019,2]
[421061354,1776969047222,-158.0,0.00019,2]
[421061355,1776969047232,-286.0,0.00019,2]
[421061356,1776969047242,-500.0,0.00019046,2]
[421061357,1776969047251,-155.0,0.00019066,2]
[421061358,1776969047261,-351.31594055,0.00019079,60]
[421061359,1776969047270,-8285.45922602,0.0001917,2]
[421061360,1776969047509,-155.620158,0.0001917,2]
[421061361,1776969047518,-151.0,0.0001917,2]
[421061362,1776969047528,-155.620158,0.0001917,2]
[421061363,1776969047538,-151.0,0.0001917,2]
[421061364,1776969047548,-155.620158,0.0001917,2]
[421061365,1776969047558,-155.620158,0.0001917,2]
[421061366,1776969047567,-151.0,0.0001917,2]
[421061367,1776969047577,-238.515312,0.0001917,2]
[421061368,1776969047588,-312.11363,0.0001917,2]
[421061369,1776969047598,-1556.666846,0.0001917,2]
[421061370,1776969047609,-312.11363,0.0001917,2]
[421061371,1776969047619,-151.0,0.0001917,2]
[421061372,1776969047630,-1556.666846,0.0001917,2]
[421061373,1776969047640,-312.11363,0.0001917,2]
[421061374,1776969047650,-312.113638,0.0001917,2]
[421061375,1776969047660,-1556.666846,0.0001917,2]
[421061376,1776969047670,-1556.666851,0.0001917,2]
[421061377,1776969047680,-151.0,0.0001917,2]
[421061378,1776969047690,-151.0,0.0001917,2]
[421061379,1776969047700,-155.620158,0.00019178,2]
[421061380,1776969047710,-151.0,0.00019178,2]
[421061381,1776969047720,-155.620158,0.00019178,2]
[421061382,1776969047730,-151.0,0.00019178,2]
[421061383,1776969047741,-155.620158,0.00019178,2]
[421061384,1776969047750,-155.620164,0.00019178,2]
[421061385,1776969047760,-300.0,0.00019178,2]
[421061386,1776969047770,-151.228229,0.00019178,2]
[421061387,1776969047780,-2948.305534,0.00019178,2]
[421061388,1776969047790,-2948.305534,0.00019178,2]
[421061389,1776969047801,-2948.305534,0.00019178,2]
[421061390,1776969047811,-2948.305534,0.00019178,2]
[421061391,1776969047820,-2948.305534,0.00019178,2]
[421061392,1776969047830,-2948.305534,0.00019178,2]
[421061393,1776969047842,-2948.305534,0.00019178,2]
[421061394,1776969047852,-2948.305534,0.00019178,2]
[421061395,1776969047862,-2948.305534,0.00019178,2]
[421061396,1776969047872,-2948.305534,0.00019178,2]
[421061397,1776969047882,-2948.305534,0.00019178,2]
[421061398,1776969047892,-2948.305534,0.00019178,2]
[421061399,1776969047903,-2948.305534,0.00019178,2]
[421061400,1776969047913,-2948.305534,0.00019178,2]
[421061401,1776969047923,-2948.305534,0.00019178,2]
[421061402,1776969047933,-2948.305534,0.00019178,2]
[421061403,1776969047943,-2948.305534,0.00019178,2]
[421061404,1776969047953,-2948.305534,0.00019178,2]
[421061405,1776969047963,-2948.305534,0.00019178,2]
[421061406,1776969047973,-2948.305536,0.00019178,2]
[421061407,1776969047982,-1191.0,0.00019178,2]
[421061408,1776969047993,-3111.97085719,0.000192,2]
[421061409,1776969048004,-1595.64986283,0.000192,2]
[421061410,1776969048015,-242.89679077,0.000192,2]
[421061411,1776969048024,-239.63605714,0.000192,2]
[421061412,1776969048063,-443.47740739,0.000192,2]
[421061413,1776969048073,-329.37177381,0.000192,2]
[421061414,1776969048082,-168.03137638,0.000192,2]
[421061415,1776969048093,-796.0,0.000192,2]
[421061416,1776969048103,-2798.81612946,0.00019208,2]
[421061417,1776969048114,-155.0,0.00019208,2]
[421061418,1776969048123,-20408.93078392,0.000193,2]
[421061419,1776969048134,-20408.93078389,0.000193,2]
[421061420,1776969048143,-20408.93078389,0.000193,2]
[421061421,1776969048153,-20408.93078389,0.000193,2]
[421061422,1776969048163,-1216.29258036,0.000193,2]
[421061423,1776969048172,-1216.29258036,0.000193,2]
[421061424,1776969048182,-1216.29258036,0.000193,2]
[421061425,1776969048192,-1216.29258036,0.000193,2]
[421061426,1776969048203,-500.0,0.0001932,2]
[421061427,1776969048213,-301.23535796,0.0001934,60]
[421061428,1776969048222,-420.0,0.00019349,2]
[421061429,1776969048233,-155.0,0.00019351,2]
[421061430,1776969048244,-2398.4119403,0.00019373,2]
[421061431,1776969048254,-351.31594055,0.00019374,60]
[421061432,1776969048264,-3111.97085719,0.000194,2]
[421061433,1776969048276,-1680.0,0.00019443,2]
[421061434,1776969048285,-1191.0,0.00019452,2]
[421061435,1776969048296,-478.75725327,0.00019482,2]
[421061436,1776969048307,-578.20924308,0.00019482,2]
[421061437,1776969048319,-155.0,0.00019493,2]
[421061438,1776969048329,-327.62054871,0.000195,2]
[421061439,1776969048339,-327.62054869,0.000195,2]
[421061440,1776969048350,-327.62054869,0.000195,2]
[421061441,1776969048362,-438.93,0.0001951,2]
[421061442,1776969048371,-153.8,0.00019551,2]
[421061443,1776969048380,-300.0,0.00019589,3]
[421061444,1776969048390,-528.37916429,0.00019594,2]
[421061445,1776969048400,-500.0,0.000196,2]
[421061446,1776969048410,-500.0,0.000196,2]
[421061447,1776969048420,-3111.97085719,0.000196,2]
[421061448,1776969048432,-351850.99116628,0.000196,2]
[421061449,1776969048447,-20400.55000025,0.000196,2]
[421061450,1776969048463,-22675.99176292,0.000196,2]
[421061451,1776969048476,-43893.49936851,0.000196,2]
[421072543,1776969930142,-1200.0,0.0001329,2]
[421072545,1776969930174,-31.12281982,0.00013291,2]
[421073684,1776970012102,-171.02632281,0.00013291,2]
[421073894,1776970028246,-174.74318358,0.00013158,2]
[421073986,1776970035133,-172.4853557,0.00013158,2]
[421074420,1776970165088,-3119.53648743,0.00013158,2]
[421074421,1776970165114,-607.0,0.00013158,2]
[421074422,1776970165137,-158.69666587,0.00013426,2]
[421074423,1776970165161,-300.0,0.00013697,2]
[421074424,1776970165182,-294.0,0.00013698,2]
[421074425,1776970165206,-300.0,0.00013698,2]
[421074426,1776970165228,-300.0,0.00013698,2]
[421074427,1776970165249,-1000.0,0.00013699,2]
[421074428,1776970165274,-300.0,0.00013972,2]
[421074429,1776970165298,-300.0,0.00013972,2]
[421074430,1776970165321,-300.0,0.00013972,2]
[421074431,1776970165344,-300.0,0.00013972,2]
[421074432,1776970165367,-300.0,0.00013972,2]
[421074433,1776970165390,-300.0,0.00013972,2]
[421074434,1776970165412,-300.0,0.00013972,2]
[421074435,1776970165435,-300.0,0.00013972,2]
[421074436,1776970165458,-300.0,0.00013972,2]
[421074437,1776970165481,-300.0,0.00013972,2]
[421074438,1776970165503,-300.0,0.00013972,2]
[421074439,1776970165527,-300.0,0.00013972,2]
[421074440,1776970165550,-300.0,0.00013972,2]
[421074441,1776970165574,-300.0,0.00013972,2]
[421074442,1776970165599,-300.0,0.00013972,2]
[421074443,1776970165619,-1373.24468195,0.00013972,2]
[421074444,1776970165640,-1680.0,0.00014619,2]
[421074445,1776970165662,-420.0,0.0001501,2]
[421074446,1776970165685,-187.26206572,0.00015426,2]
[421074447,1776970165705,-784.6725001,0.00016081,2]
[421074492,1776970232463,-154.77749123,0.00016754,2]
[421074493,1776970232472,-661.60880368,0.00017585,2]
[421074498,1776970232518,-1489.12919632,0.00017585,2]
[421074500,1776970232527,-220.0865898,0.00017611,2]
[421074501,1776970232537,-1003.73778207,0.00017852,2]
[421074503,1776970232546,-1001.40613054,0.00018027,2]
[421074504,1776970232555,-600.0,0.00018107,2]
[421074505,1776970232564,-300.0,0.00018132,2]
[421074506,1776970232573,-2230.315306,0.00018133,2]
[421074507,1776970232583,-195.0,0.00018185,2]
[421074508,1776970232592,-445.202766,0.00018186,2]
[421074509,1776970232601,-537.6845,0.00018186,2]
[421074510,1776970232611,-151.0,0.00018186,2]
[421074511,1776970232620,-162.380719,0.00018186,2]
[421074512,1776970232629,-165.76821266,0.00018196,2]
[421074513,1776970232638,-500.0,0.00018196,2]
[421074514,1776970232648,-160.42151669,0.00018196,2]
[421074515,1776970232658,-346.03171762,0.00018196,2]
[421074516,1776970232666,-698.48958009,0.00018196,2]
[421074517,1776970232676,-698.48958009,0.00018196,2]
[421074518,1776970232685,-698.48958009,0.00018196,2]
[421074519,1776970232694,-698.48958009,0.00018196,2]
[421074520,1776970232704,-698.48958009,0.00018196,2]
[421074521,1776970232712,-698.48958009,0.00018196,2]
[421074522,1776970232722,-698.48958009,0.00018196,2]
[421074523,1776970232731,-698.48958009,0.00018196,2]
[421074524,1776970232739,-698.48958009,0.00018196,2]
[421074525,1776970232748,-698.48958009,0.00018196,2]
[421074526,1776970232757,-698.48958009,0.00018196,2]
[421074527,1776970232766,-698.48958009,0.00018196,2]
[421074528,1776970232775,-698.48958009,0.00018196,2]
[421074529,1776970232784,-698.48958009,0.00018196,2]
[421074530,1776970232793,-698.48958009,0.00018196,2]
[421074531,1776970232802,-698.48958009,0.00018196,2]
[421074532,1776970232811,-698.48958009,0.00018196,2]
[421074533,1776970232820,-698.48958009,0.00018196,2]
[421074534,1776970232829,-698.48958009,0.00018196,2]
[421074535,1776970232838,-698.48958009,0.00018196,2]
[421074536,1776970232847,-698.48958009,0.00018196,2]
[421074537,1776970232856,-698.48958009,0.00018196,2]
[421074538,1776970232865,-698.48958009,0.00018196,2]
[421074539,1776970232875,-698.48958009,0.00018196,2]
[421074540,1776970232884,-698.48958009,0.00018196,2]
[421074541,1776970232893,-698.48958009,0.00018196,2]
[421074542,1776970232903,-698.48958009,0.00018196,2]
[421074543,1776970232912,-785.80077758,0.00018196,2]
[421074544,1776970232921,-785.80077758,0.00018196,2]
[421074545,1776970232931,-785.80077758,0.00018196,2]
[421074546,1776970232940,-785.80077758,0.00018196,2]
[421074547,1776970232949,-55068.77082514,0.00018197,2]
[421074548,1776970232961,-3006.78310647,0.00018197,2]
[421074592,1776970238460,-44726.8846239,0.00018197,2]
[421074594,1776970238469,-110059.84164863,0.00018197,2]
[421074596,1776970238479,-689.0,0.00018197,2]
[421074598,1776970238488,-500.0,0.00018273,2]
[421074600,1776970238497,-300.0,0.00018495,2]
[421074602,1776970238507,-300.0,0.00018495,2]
[421074604,1776970238516,-300.0,0.00018495,2]
[421074606,1776970238525,-300.0,0.00018495,2]
[421074608,1776970238535,-300.0,0.00018495,2]
[421074609,1776970238546,-300.0,0.00018495,2]
[421074611,1776970238555,-300.0,0.00018495,2]
[421074613,1776970238564,-300.0,0.00018495,2]
[421074615,1776970238573,-300.0,0.00018495,2]
[421074617,1776970238582,-300.0,0.00018495,2]
[421074619,1776970238591,-300.0,0.00018495,2]
[421074621,1776970238600,-300.0,0.00018495,2]
[421074623,1776970238608,-300.0,0.00018495,2]
[421074625,1776970238617,-300.0,0.00018495,2]